bitfinex/quotes_BTCUSD_20251102
["timestamp","ask_amount","ask_price","bid_price","bid_amount"]
[1762052621230,1.02890594,110230.0,110220.0,0.02574]
[1762052623515,0.24474108,110230.0,110220.0,0.02574]
[1762052623722,1.02890594,110230.0,110220.0,0.02574]
[1762052638118,1.02890594,110230.0,110220.0,0.20719527]
[1762052640566,1.02890594,110230.0,110220.0,0.02574]
[1762052642201,1.05235594,110230.0,110220.0,0.02574]
[1762052642520,1.02890594,110230.0,110220.0,0.012]
[1762052642735,1.05235594,110230.0,110220.0,0.012]
[1762052643145,1.07963078,110230.0,110220.0,0.012]
[1762052643292,1.07963078,110230.0,110220.0,0.004]
[1762052643900,1.07963078,110230.0,110220.0,0.008]
[1762052644508,1.07963078,110230.0,110220.0,0.004]
[1762052644890,1.07963078,110230.0,110220.0,0.006]
[1762052648940,1.47171321,110230.0,110220.0,0.006]
[1762052649110,1.07963078,110230.0,110220.0,0.006]
[1762052651093,1.09925994,110230.0,110220.0,0.006]
[1762052651295,1.07963078,110230.0,110220.0,0.006]
[1762052651494,1.07973988,110230.0,110220.0,0.006]
[1762052656406,1.09936571,110230.0,110220.0,0.006]
[1762052661833,1.07973988,110230.0,110220.0,0.006]
[1762052662036,0.6876029,110230.0,110220.0,0.006]
[1762052665525,1.07973988,110230.0,110220.0,0.006]
[1762052678475,0.6876029,110230.0,110220.0,0.006]
[1762052680856,0.70723297,110230.0,110220.0,0.006]
[1762052683544,0.6876029,110230.0,110220.0,0.006]
[1762052683749,0.70723349,110230.0,110220.0,0.006]
[1762052685114,0.6876029,110230.0,110220.0,0.006]
[1762052690441,0.70723542,110230.0,110220.0,0.006]
[1762052690751,1.0993724,110230.0,110220.0,0.006]
[1762052709257,0.70723542,110230.0,110220.0,0.006]
[1762052711344,1.10280049,110230.0,110220.0,0.006]
[1762052713402,1.10270395,110230.0,110220.0,0.006]
[1762052719647,1.10270395,110230.0,110220.0,0.01974]
[1762052720415,1.07582586,110230.0,110220.0,0.01974]
[1762052721633,1.10026586,110230.0,110220.0,0.01974]
[1762052725758,1.10026586,110230.0,110220.0,0.03174]
[1762052727147,1.10363981,110230.0,110220.0,0.018]
[1762052741559,1.10363981,110230.0,110220.0,0.03174]
[1762052742597,1.07919981,110230.0,110220.0,0.03174]
[1762052742989,1.07582586,110230.0,110220.0,0.03174]
[1762052743816,1.10013586,110230.0,110220.0,0.03174]
[1762052752661,1.05619334,110230.0,110220.0,0.03174]
[1762052752863,1.07582766,110230.0,110220.0,0.03174]
[1762052753254,1.04855282,110230.0,110220.0,0.03174]
[1762052756153,1.07286282,110230.0,110220.0,0.03174]
[1762052757990,1.07286282,110230.0,110220.0,0.018]
[1762052763754,1.07622173,110230.0,110220.0,0.018]
[1762052764833,4.89911634,110230.0,110220.0,0.018]
[1762052765036,4.91616042,110230.0,110220.0,0.018]
[1762052765259,4.94169866,110230.0,110220.0,0.018]
[1762052765668,4.94069866,110230.0,110220.0,0.018]
[1762052765883,4.96797727,110230.0,110220.0,0.016]
[1762052766307,4.96797727,110230.0,110220.0,0.012]
[1762052766544,4.96897727,110230.0,110220.0,0.012]
[1762052766750,4.96897727,110230.0,110220.0,0.013]
[1762052767178,4.96897727,110230.0,110220.0,0.012]
[1762052767595,4.97197727,110230.0,110220.0,0.012]
[1762052767808,4.98297727,110230.0,110220.0,0.012]
[1762052770035,4.99721055,110230.0,110220.0,0.012]
[1762052770247,5.01144377,110230.0,110220.0,0.012]
[1762052770520,4.99721055,110230.0,110220.0,0.012]
[1762052773107,4.99621055,110230.0,110220.0,0.012]
[1762052775230,4.98197727,110230.0,110220.0,0.012]
[1762052775439,4.59010898,110230.0,110220.0,0.012]
[1762052775629,4.56557074,110230.0,110220.0,0.012]
[1762052776051,4.55657074,110230.0,110220.0,0.012]
[1762052778656,4.55757074,110230.0,110220.0,0.012]
[1762052780140,4.55657074,110230.0,110220.0,0.012]
[1762052781011,4.56557074,110230.0,110220.0,0.012]
[1762052781849,4.56657074,110230.0,110220.0,0.012]
[1762052783916,4.56557074,110230.0,110220.0,0.012]
[1762052784131,4.56657074,110230.0,110220.0,0.012]
[1762052784755,4.56557074,110230.0,110220.0,0.012]
[1762052784961,4.56657074,110230.0,110220.0,0.012]
[1762052787346,4.59110898,110230.0,110220.0,0.012]
[1762052791129,4.59010898,110230.0,110220.0,0.012]
[1762052791550,4.59110898,110230.0,110220.0,0.012]
[1762052791762,4.59010898,110230.0,110220.0,0.012]
[1762052791964,4.60434212,110230.0,110220.0,0.012]
[1762052793217,4.60534212,110230.0,110220.0,0.012]
[1762052793475,4.60434212,110230.0,110220.0,0.012]
[1762052794310,4.63706314,110230.0,110220.0,0.012]
[1762052795451,4.62806314,110230.0,110220.0,0.012]
[1762052795669,4.59534212,110230.0,110220.0,0.012]
[1762052799427,4.59634212,110230.0,110220.0,0.012]
[1762052799575,4.59534212,110230.0,110220.0,0.012]
[1762052800189,4.59534212,110230.0,110220.0,1e-08]
[1762052800190,5.052607,110230.0,110220.0,1e-08]
[1762052800395,5.0871845,110230.0,110220.0,1e-08]
[1762052800602,5.05446348,110230.0,110220.0,1e-08]
[1762052800870,5.02429568,110230.0,110220.0,1e-08]
[1762052801073,5.07077885,110230.0,110220.0,1e-08]
[1762052801297,5.00234773,110230.0,110220.0,1e-08]
[1762052802084,4.98811459,110230.0,110220.0,1e-08]
[1762052802309,5.03715625,110230.0,110220.0,1e-08]
[1762052802511,5.03515625,110230.0,110220.0,1e-08]
[1762052802723,5.04315625,110230.0,110220.0,1e-08]
[1762052802943,5.04715625,110230.0,110220.0,1e-08]
[1762052805016,5.06139179,110230.0,110220.0,1e-08]
[1762052818340,5.07562755,110230.0,110220.0,1e-08]
[1762052821792,0.21773638,110160.0,110150.0,0.1110059]
[1762052822003,0.6099353,110160.0,110150.0,0.11115133]
[1762052822216,0.6099353,110160.0,110150.0,0.12489133]
[1762052822438,1.02961422,110160.0,110150.0,0.02034543]
[1762052822869,1.02961422,110160.0,110150.0,0.20191601]
[1762052823107,1.02961422,110160.0,110150.0,0.20991601]
[1762052823932,1.02961422,110160.0,110150.0,0.02834543]
[1762052824263,1.02961422,110160.0,110150.0,0.02334543]
[1762052824468,1.02961422,110160.0,110150.0,0.21391601]
[1762052826456,1.02961422,110160.0,110150.0,0.03234543]
[1762052827107,1.02961422,110160.0,110150.0,0.21391601]
[1762052827257,1.06296079,110160.0,110150.0,0.01860543]
[1762052827678,1.06296079,110160.0,110150.0,0.03234543]
[1762052829102,1.01105079,110160.0,110150.0,0.04696895]
[1762052829314,1.01105079,110160.0,110150.0,0.03322895]
[1762052829510,1.02628079,110160.0,110150.0,0.03322895]
[1762052830543,1.03853079,110160.0,110150.0,0.03322895]
[1762052831722,1.03853079,110160.0,110150.0,0.01948895]
[1762052831904,1.06296079,110160.0,110150.0,0.04677903]
[1762052834185,1.01105079,110160.0,110150.0,0.06051903]
[1762052835465,1.03853079,110160.0,110150.0,0.06051903]
[1762052835667,1.06296079,110160.0,110150.0,0.04677903]
[1762052837522,1.06370317,110160.0,110150.0,0.04031903]
[1762052838151,1.06370317,110160.0,110150.0,0.04677903]
[1762052838336,1.06370317,110160.0,110150.0,0.06051903]
[1762052844702,1.06370317,110160.0,110150.0,0.04677903]
[1762052846249,1.45627328,110160.0,110150.0,0.04031903]
[1762052847178,1.06370317,110160.0,110150.0,0.04031903]
[1762052848233,1.45627328,110160.0,110150.0,0.04031903]
[1762052848405,1.06370317,110160.0,110150.0,0.04031903]
[1762052849217,1.45627328,110160.0,110150.0,0.04031903]
[1762052849430,1.06370317,110160.0,110150.0,0.04031903]
[1762052852627,1.06370317,110160.0,110150.0,0.04677903]
[1762052853636,1.06370317,110160.0,110150.0,0.01948895]
[1762052863226,1.06370317,110160.0,110150.0,0.03322895]
[1762052870937,1.01179317,110160.0,110150.0,0.04696895]
[1762052871572,1.01179317,110160.0,110150.0,0.22853953]
[1762052871835,1.01179317,110160.0,110150.0,0.21479953]
[1762052872659,1.02795317,110160.0,110150.0,0.03322895]
[1762052875782,1.02795317,110160.0,110150.0,0.21479953]
[1762052876610,1.02795317,110160.0,110150.0,0.03322895]
[1762052878058,1.02795317,110160.0,110150.0,0.21479953]
[1762052878275,1.02795317,110160.0,110150.0,0.03322895]
[1762052879338,1.02795317,110160.0,110150.0,0.21479953]
[1762052879777,1.02795317,110160.0,110150.0,0.03322895]
[1762052883960,0.03618228,110160.0,110150.0,0.34493008]
[1762052884157,0.42875239,110160.0,110150.0,0.34493008]
[1762052884537,0.42875239,110160.0,110150.0,0.37222016]
[1762052885271,0.8213225,110160.0,110150.0,0.37222016]
[1762052885819,0.8213225,110160.0,110150.0,0.34663551]
[1762052887124,0.03618228,110160.0,110150.0,0.34663551]
[1762052887484,0.42875239,110160.0,110150.0,0.34663551]
[1762052891689,0.42875239,110160.0,110150.0,0.31934543]
[1762052896002,0.8213225,110160.0,110150.0,0.31934543]
[1762052896192,0.8213225,110160.0,110150.0,0.35414189]
[1762052897490,0.42861888,110160.0,110150.0,0.35414189]
[1762052914414,0.61017298,110160.0,110150.0,0.35414189]
[1762052918446,0.42861888,110160.0,110150.0,0.35414189]
[1762052922561,0.61017298,110160.0,110150.0,0.35414189]
[1762052923597,0.42861888,110160.0,110150.0,0.35414189]
[1762052923818,0.42861888,110160.0,110150.0,0.31934543]
[1762052925672,0.61017298,110160.0,110150.0,0.31934543]
[1762052929874,0.42861888,110160.0,110150.0,0.31934543]
[1762052930645,0.61017298,110160.0,110150.0,0.31934543]
[1762052931668,0.60781525,110160.0,110150.0,0.3721675]
[1762052933052,0.42626115,110160.0,110150.0,0.3721675]
[1762052933736,0.60781525,110160.0,110150.0,0.3721675]
[1762052934369,0.60781525,110160.0,110150.0,0.39945656]
[1762052934540,0.42626115,110160.0,110150.0,0.39945656]
[1762052946490,0.60781525,110160.0,110150.0,0.39945656]
[1762052946705,0.42626115,110160.0,110150.0,0.39945656]
[1762052946905,0.60781525,110160.0,110150.0,0.39945656]
[1762052948823,0.42626115,110160.0,110150.0,0.39945656]
[1762052949033,0.60781525,110160.0,110150.0,0.39945656]
[1762052949485,0.42626115,110160.0,110150.0,0.39945656]
[1762052950135,0.42626115,110160.0,110150.0,0.34663449]
[1762052950337,0.60781525,110160.0,110150.0,0.34663449]
[1762052951747,0.60781525,110160.0,110150.0,0.31934543]
[1762052952644,0.42626115,110160.0,110150.0,0.31934543]
[1762052953022,0.60781525,110160.0,110150.0,0.31934543]
[1762052953619,0.42626115,110160.0,110150.0,0.31934543]
[1762052953850,0.42626115,110160.0,110150.0,0.3721675]
[1762052954505,0.3924366,110170.0,110160.0,0.18154391]
[1762052954720,0.3924366,110170.0,110160.0,0.22717932]
[1762052954721,0.6101565,110170.0,110160.0,0.22717932]
[1762052954927,0.6101565,110170.0,110160.0,0.20969668]
[1762052955559,0.6101565,110170.0,110160.0,0.02814258]
[1762052955769,0.6101565,110170.0,110160.0,0.06777385]
[1762052955979,0.6101565,110170.0,110160.0,0.07677385]
[1762052956189,0.6101565,110170.0,110160.0,0.25832795]
[1762052957354,0.61012477,110170.0,110160.0,0.25832795]
[1762052960443,0.61012477,110170.0,110160.0,0.07677385]
[1762052964937,0.61012477,110170.0,110160.0,0.25832795]
[1762052968617,0.42858715,110170.0,110160.0,0.25832795]
[1762052971976,0.61012477,110170.0,110160.0,0.25832795]
[1762052977296,0.42858715,110170.0,110160.0,0.25832795]
[1762052978074,0.61012477,110170.0,110160.0,0.25832795]
[1762052982568,0.42858715,110170.0,110160.0,0.25832795]
[1762052985233,0.61012477,110170.0,110160.0,0.25832795]
[1762052990007,0.61012477,110170.0,110160.0,0.07677385]
[1762052990825,0.61012477,110170.0,110160.0,0.25832795]
[1762052991864,0.61012477,110170.0,110160.0,0.07677385]
[1762052994254,0.61012477,110170.0,110160.0,0.06303385]
[1762052994459,0.42858715,110170.0,110160.0,0.25832795]
[1762052994851,0.61012477,110170.0,110160.0,0.25832795]
[1762052998483,0.61012477,110170.0,110160.0,0.07677385]
[1762052999808,1.00252964,110170.0,110160.0,0.07677385]
[1762053001289,1.03033964,110170.0,110160.0,0.02340258]
[1762053001500,1.64585451,110170.0,110160.0,0.00966258]
[1762053001704,1.67314747,110170.0,110160.0,0.00966258]
[1762053001919,1.70984825,110170.0,110160.0,0.00966258]
[1762053002262,2.03279472,110170.0,110160.0,0.00966258]
[1762053002469,1.65743392,110170.0,110160.0,0.00966258]
[1762053002992,1.65743392,110170.0,110160.0,0.00366258]
[1762053003208,1.64038985,110170.0,110160.0,0.00066258]
[1762053003617,1.64038985,110170.0,110160.0,0.00166258]
[1762053004262,1.64038985,110170.0,110160.0,0.00466258]
[1762053004682,1.64038985,110170.0,110160.0,0.00166258]
[1762053005202,1.64038985,110170.0,110160.0,0.00466258]
[1762053007403,1.6207426,110170.0,110160.0,0.00466258]
[1762053018559,1.6297426,110170.0,110160.0,0.00466258]
[1762053019376,1.63004196,110170.0,110160.0,0.00466258]
[1762053024257,1.64965785,110170.0,110160.0,0.00466258]
[1762053027052,1.64065785,110170.0,110160.0,0.00466258]
[1762053032222,1.64965785,110170.0,110160.0,0.00466258]
[1762053033271,1.66671103,110170.0,110160.0,0.00466258]
[1762053041306,1.65771103,110170.0,110160.0,0.00466258]
[1762053046510,1.66671103,110170.0,110160.0,0.00466258]
[1762053050164,1.64965785,110170.0,110160.0,0.00466258]
[1762053053857,1.64065785,110170.0,110160.0,0.00466258]
[1762053058775,1.64965785,110170.0,110160.0,0.00466258]
[1762053059973,1.0339933,110170.0,110160.0,0.01840258]
[1762053060295,1.0579333,110170.0,110160.0,0.04951501]
[1762053060495,1.03064034,110170.0,110160.0,0.00466258]
[1762053061289,1.01102445,110170.0,110160.0,0.00466258]
[1762053061838,1.03066466,110170.0,110160.0,0.00466258]
[1762053063113,1.01102445,110170.0,110160.0,0.00466258]
[1762053072501,1.03831527,110170.0,110160.0,0.00466258]
[1762053077125,0.64656527,110170.0,110160.0,0.19995668]
[1762053077335,0.58309217,110170.0,110160.0,0.08003635]
[1762053077754,0.61927445,110170.0,110160.0,0.26159045]
[1762053077975,0.61927445,110170.0,110160.0,0.25859045]
[1762053078179,0.61927445,110170.0,110160.0,0.25759045]
[1762053078387,0.61927445,110170.0,110160.0,0.26359045]
[1762053078594,0.61927445,110170.0,110160.0,0.21869668]
[1762053078806,0.61927445,110170.0,110160.0,0.20969668]
[1762053079134,0.43873683,110170.0,110160.0,0.22869668]
[1762053079363,0.43859613,110170.0,110160.0,0.22869668]
[1762053081355,0.62013375,110170.0,110160.0,0.22869668]
[1762053082695,0.62013375,110170.0,110160.0,0.28219325]
[1762053082891,0.62013375,110170.0,110160.0,0.22869668]
[1762053085247,0.43859613,110170.0,110160.0,0.22869668]
[1762053086531,0.62013375,110170.0,110160.0,0.22869668]
[1762053089045,1.0125476,110170.0,110160.0,0.22869668]
[1762053089481,1.0125476,110170.0,110160.0,0.04714258]
[1762053090071,0.2277199,110170.0,110160.0,0.22869668]
[1762053090273,1.0125476,110170.0,110160.0,0.22869668]
[1762053091240,0.62013375,110170.0,110160.0,0.22869668]
[1762053091379,0.62013375,110170.0,110160.0,0.04714258]
[1762053092040,1.0125476,110170.0,110160.0,0.04714258]
[1762053092241,1.0125476,110170.0,110160.0,0.22869668]
[1762053094344,1.0125476,110170.0,110160.0,0.04714258]
[1762053095328,1.0125476,110170.0,110160.0,0.22869668]
[1762053096442,1.0035476,110170.0,110160.0,0.22869668]
[1762053097504,1.0035476,110170.0,110160.0,0.04714258]
[1762053098929,1.0186876,110170.0,110160.0,0.03340258]
[1762053099138,1.0552176,110170.0,110160.0,0.01966258]
[1762053110964,1.0303676,110170.0,110160.0,0.03340258]
[1762053113626,1.0035476,110170.0,110160.0,0.2640379]
[1762053113975,1.0035476,110170.0,110160.0,0.22869668]
[1762053114174,1.0035476,110170.0,110160.0,0.21495668]
[1762053115893,0.82200998,110170.0,110160.0,0.21495668]
[1762053117978,1.0035476,110170.0,110160.0,0.21495668]
[1762053118188,0.82200998,110170.0,110160.0,0.21495668]
[1762053118510,0.82200998,110170.0,110160.0,0.22869668]
[1762053118877,1.0035476,110170.0,110160.0,0.22869668]
[1762053119188,0.82200998,110170.0,110160.0,0.22869668]
[1762053120310,1.0035476,110170.0,110160.0,0.22869668]
[1762053120730,0.82200998,110170.0,110160.0,0.22869668]
[1762053121171,0.42959613,110170.0,110160.0,0.22869668]
[1762053121604,0.42959613,110170.0,110160.0,0.28219331]
[1762053121740,0.03718228,110170.0,110160.0,0.28219331]
[1762053121956,0.42959613,110170.0,110160.0,0.28219331]
[1762053125811,0.42959613,110170.0,110160.0,0.30948004]
[1762053128896,0.001,110170.0,110160.0,0.30948004]
[1762053130048,0.39241385,110180.0,110170.0,0.18153762]
[1762053130227,0.39241385,110180.0,110170.0,0.35871905]
[1762053130427,0.39241385,110180.0,110170.0,0.35430529]
[1762053130633,0.04518228,110190.0,110180.0,0.18152114]
[1762053130859,0.43759613,110190.0,110180.0,0.20900114]
[1762053131165,0.6191008,110190.0,110180.0,0.20900114]
[1762053131776,0.04518228,110190.0,110180.0,0.20900114]
[1762053131987,0.43759613,110190.0,110180.0,0.2295771]
[1762053132217,0.6191008,110190.0,110180.0,0.20900114]
[1762053133006,0.43959613,110190.0,110180.0,0.20900114]
[1762053133666,0.6211008,110190.0,110180.0,0.21100114]
[1762053134014,0.43959613,110190.0,110180.0,0.21100114]
[1762053134221,0.6211008,110190.0,110180.0,0.21100114]
[1762053134421,0.43959613,110190.0,110180.0,0.21100114]
[1762053135880,0.6211008,110190.0,110180.0,0.21100114]
[1762053137473,0.43959613,110190.0,110180.0,0.21100114]
[1762053137677,0.6211008,110190.0,110180.0,0.21100114]
[1762053138847,0.6211008,110190.0,110180.0,0.25311957]
[1762053139532,0.6211008,110190.0,110180.0,0.21100114]
[1762053141265,0.6209575,110190.0,110180.0,0.21122196]
[1762053146860,0.43945283,110190.0,110180.0,0.21122196]
[1762053149282,0.6209575,110190.0,110180.0,0.21122196]
[1762053150046,0.43945283,110190.0,110180.0,0.21122196]
[1762053152440,0.6209575,110190.0,110180.0,0.21122196]
[1762053153961,0.6209575,110190.0,110180.0,0.21522196]
[1762053153962,0.43945283,110190.0,110180.0,0.21522196]
[1762053154125,0.43945283,110190.0,110180.0,0.26430651]
[1762053155754,0.43945283,110190.0,110180.0,0.21522196]
[1762053155908,0.6209575,110190.0,110180.0,0.21522196]
[1762053158305,0.43945283,110190.0,110180.0,0.21522196]
[1762053171430,0.002,110190.0,110180.0,0.94749251]
[1762053171630,0.00131025,110190.0,110180.0,0.99749435]
[1762053171836,0.07685051,110230.0,110210.0,0.18147173]
[1762053171837,0.39227055,110230.0,110210.0,0.18147173]
[1762053171977,0.39227055,110230.0,110220.0,0.30700925]
[1762053172623,0.42845283,110230.0,110220.0,0.30700925]
[1762053172819,0.57370935,110230.0,110220.0,0.30702117]
[1762053173021,0.57370935,110230.0,110220.0,0.29336901]
[1762053173276,0.39227055,110230.0,110220.0,0.30136901]
[1762053173426,0.42845283,110230.0,110220.0,0.30136901]
[1762053174061,0.42845283,110230.0,110220.0,0.31510901]
[1762053174260,0.42845283,110230.0,110220.0,0.31910901]
[1762053174489,0.60989163,110230.0,110220.0,0.31910901]
[1762053176337,0.60989163,110230.0,110220.0,0.13765374]
[1762053176546,0.60989163,110230.0,110220.0,0.31910901]
[1762053178721,0.60989163,110230.0,110220.0,0.13765374]
[1762053178895,0.60989163,110230.0,110220.0,0.31910901]
[1762053179911,0.60989163,110230.0,110220.0,0.13476374]
[1762053180110,0.60989163,110230.0,110220.0,0.31621901]
[1762053180964,0.42845283,110230.0,110220.0,0.31621901]
[1762053181191,0.42845283,110230.0,110220.0,0.36689544]
[1762053184155,0.60989163,110230.0,110220.0,0.31621901]
[1762053184590,0.60989163,110230.0,110220.0,0.13476374]
[1762053186296,0.60989163,110230.0,110220.0,0.04684784]
[1762053187904,0.60989163,110230.0,110220.0,0.22830311]
[1762053189686,0.62560163,110230.0,110220.0,0.03310784]
[1762053189858,0.66059163,110230.0,110220.0,0.03310784]
[1762053190226,0.63790163,110230.0,110220.0,0.03310784]
[1762053190428,0.63790163,110230.0,110220.0,0.02910784]
[1762053190624,0.63790163,110230.0,110220.0,0.02110784]
[1762053190865,0.63790163,110230.0,110220.0,0.02210784]
[1762053191063,0.63790163,110230.0,110220.0,0.02810784]
[1762053193077,0.66059163,110230.0,110220.0,0.01436784]
[1762053193273,1.05286218,110230.0,110220.0,0.00708784]
[1762053193473,4.25286218,110230.0,110220.0,0.00708784]
[1762053194025,4.59286218,110230.0,110220.0,8.784e-05]
[1762053194432,4.59386218,110230.0,110220.0,0.00308784]
[1762053194569,4.59286218,110230.0,110220.0,0.00308784]
[1762053194772,4.59286218,110230.0,110220.0,8.784e-05]
[1762053195260,4.62313978,110230.0,110220.0,8.784e-05]
[1762053196277,1.20817923,110230.0,110220.0,0.01382784]
[1762053196672,1.23086923,110230.0,110220.0,0.01382784]
[1762053196982,1.23086923,110230.0,110220.0,8.784e-05]
[1762053198481,1.23086923,110230.0,110220.0,0.01382784]
[1762053200352,1.23086923,110230.0,110220.0,8.784e-05]
[1762053200353,1.62598094,110230.0,110220.0,8.784e-05]
[1762053201356,1.23371039,110230.0,110220.0,8.784e-05]
[1762053201563,1.62598094,110230.0,110220.0,8.784e-05]
[1762053203427,1.62568188,110230.0,110220.0,8.784e-05]
[1762053213701,0.84143984,110230.0,110220.0,8.784e-05]
[1762053213970,1.62568188,110230.0,110220.0,8.784e-05]
[1762053215906,1.21087086,110230.0,110220.0,0.01382784]
[1762053216077,1.1527421,110230.0,110220.0,0.02756784]
[1762053216276,1.54486312,110230.0,110220.0,0.01382784]
[1762053216441,1.56059312,110230.0,110220.0,0.01382784]
[1762053218199,1.57289312,110230.0,110220.0,0.01382784]
[1762053219640,1.59779312,110230.0,110220.0,8.784e-05]
[1762053220391,1.59779312,110230.0,110220.0,0.01382784]
[1762053220809,1.57289312,110230.0,110220.0,0.01382784]
[1762053221928,1.59779312,110230.0,110220.0,0.01382784]
[1762053222337,1.60063417,110230.0,110220.0,0.01382784]
[1762053223991,1.60063417,110230.0,110220.0,8.784e-05]
[1762053230278,1.62026175,110230.0,110220.0,8.784e-05]
[1762053235510,1.64753721,110230.0,110220.0,8.784e-05]
[1762053236570,1.66457633,110230.0,110220.0,8.784e-05]
[1762053237277,1.66557633,110230.0,110220.0,8.784e-05]
[1762053237487,1.66457633,110230.0,110220.0,8.784e-05]
[1762053238087,1.66557633,110230.0,110220.0,8.784e-05]
[1762053238845,1.66457633,110230.0,110220.0,8.784e-05]
[1762053239648,1.66557633,110230.0,110220.0,8.784e-05]
[1762053240195,1.66457633,110230.0,110220.0,8.784e-05]
[1762053240370,1.66557633,110230.0,110220.0,8.784e-05]
[1762053241404,1.66457633,110230.0,110220.0,8.784e-05]
[1762053242862,1.66557633,110230.0,110220.0,8.784e-05]
[1762053243199,1.66457633,110230.0,110220.0,8.784e-05]
[1762053245176,1.66557633,110230.0,110220.0,8.784e-05]
[1762053245372,1.66457633,110230.0,110220.0,8.784e-05]
[1762053246715,1.66557633,110230.0,110220.0,8.784e-05]
[1762053247111,1.66457633,110230.0,110220.0,8.784e-05]
[1762053247276,1.66557633,110230.0,110220.0,8.784e-05]
[1762053248387,1.66457633,110230.0,110220.0,8.784e-05]
[1762053249628,1.66557633,110230.0,110220.0,8.784e-05]
[1762053250268,1.66457633,110230.0,110220.0,8.784e-05]
[1762053250603,1.66557633,110230.0,110220.0,8.784e-05]
[1762053251021,1.66457633,110230.0,110220.0,8.784e-05]
[1762053252579,1.66557633,110230.0,110220.0,8.784e-05]
[1762053253439,1.66457633,110230.0,110220.0,8.784e-05]
[1762053253615,1.66557633,110230.0,110220.0,8.784e-05]
[1762053253822,1.66457633,110230.0,110220.0,8.784e-05]
[1762053254558,1.66557633,110230.0,110220.0,8.784e-05]
[1762053255409,1.66457633,110230.0,110220.0,8.784e-05]
[1762053255842,1.66557633,110230.0,110220.0,8.784e-05]
[1762053256029,1.66457633,110230.0,110220.0,8.784e-05]
[1762053256602,1.66557633,110230.0,110220.0,8.784e-05]
[1762053256983,1.66457633,110230.0,110220.0,8.784e-05]
[1762053257568,1.66557633,110230.0,110220.0,8.784e-05]
[1762053257882,1.66457633,110230.0,110220.0,8.784e-05]
[1762053258525,1.66557633,110230.0,110220.0,8.784e-05]
[1762053258750,1.66457633,110230.0,110220.0,8.784e-05]
[1762053259889,1.66557633,110230.0,110220.0,8.784e-05]
[1762053260095,1.66457633,110230.0,110220.0,8.784e-05]
[1762053260278,1.66557633,110230.0,110220.0,8.784e-05]
[1762053260905,1.66457633,110230.0,110220.0,8.784e-05]
[1762053261357,1.66557633,110230.0,110220.0,8.784e-05]
[1762053261904,1.64594875,110230.0,110220.0,8.784e-05]
[1762053262110,1.66558173,110230.0,110220.0,8.784e-05]
[1762053262521,1.66458173,110230.0,110220.0,8.784e-05]
[1762053263128,1.66558173,110230.0,110220.0,8.784e-05]
[1762053263360,1.66555895,110230.0,110220.0,8.784e-05]
[1762053266686,1.66455895,110230.0,110220.0,8.784e-05]
[1762053267432,1.66555895,110230.0,110220.0,8.784e-05]
[1762053268009,1.27344932,110230.0,110220.0,8.784e-05]
[1762053268202,1.27244932,110230.0,110220.0,8.784e-05]
[1762053269982,1.27344932,110230.0,110220.0,8.784e-05]
[1762053270182,1.27244932,110230.0,110220.0,8.784e-05]
[1762053271607,1.27344932,110230.0,110220.0,8.784e-05]
[1762053271813,1.27244932,110230.0,110220.0,8.784e-05]
[1762053272026,1.66455895,110230.0,110220.0,8.784e-05]
[1762053272232,1.66555895,110230.0,110220.0,8.784e-05]
[1762053272433,1.66455895,110230.0,110220.0,8.784e-05]
[1762053272790,1.66555895,110230.0,110220.0,8.784e-05]
[1762053275078,1.66455895,110230.0,110220.0,8.784e-05]
[1762053275258,1.66555895,110230.0,110220.0,8.784e-05]
[1762053276030,1.66455895,110230.0,110220.0,8.784e-05]
[1762053277325,1.66555895,110230.0,110220.0,8.784e-05]
[1762053278593,1.66556514,110230.0,110220.0,8.784e-05]
[1762053279477,1.66456514,110230.0,110220.0,8.784e-05]
[1762053279896,1.66556514,110230.0,110220.0,8.784e-05]
[1762053280046,1.66456514,110230.0,110220.0,8.784e-05]
[1762053280846,1.66556514,110230.0,110220.0,8.784e-05]
[1762053284945,1.66456514,110230.0,110220.0,8.784e-05]
[1762053285297,1.66556514,110230.0,110220.0,8.784e-05]
[1762053285493,1.66456514,110230.0,110220.0,8.784e-05]
[1762053286662,1.66556514,110230.0,110220.0,8.784e-05]
[1762053287995,1.66456514,110230.0,110220.0,8.784e-05]
[1762053288365,1.66556514,110230.0,110220.0,8.784e-05]
[1762053289403,1.66556492,110230.0,110220.0,8.784e-05]
[1762053290501,1.66456492,110230.0,110220.0,8.784e-05]
[1762053290863,4.66456492,110230.0,110220.0,8.784e-05]
[1762053291071,4.66556492,110230.0,110220.0,8.784e-05]
[1762053291742,4.66456492,110230.0,110220.0,8.784e-05]
[1762053291993,4.66556492,110230.0,110220.0,8.784e-05]
[1762053293432,4.66456492,110230.0,110220.0,8.784e-05]
[1762053293638,4.66556492,110230.0,110220.0,8.784e-05]
[1762053296043,4.66456492,110230.0,110220.0,8.784e-05]
[1762053296420,4.66556492,110230.0,110220.0,8.784e-05]
[1762053296621,4.66456492,110230.0,110220.0,8.784e-05]
[1762053296825,4.66556492,110230.0,110220.0,8.784e-05]
[1762053298857,4.66456492,110230.0,110220.0,8.784e-05]
[1762053299722,4.66556492,110230.0,110220.0,8.784e-05]
[1762053299950,4.66456492,110230.0,110220.0,8.784e-05]
[1762053300140,4.66556492,110230.0,110220.0,8.784e-05]
[1762053301776,4.66456492,110230.0,110220.0,8.784e-05]
[1762053303604,4.66556492,110230.0,110220.0,8.784e-05]
[1762053304347,4.66456492,110230.0,110220.0,8.784e-05]
[1762053304944,4.66556492,110230.0,110220.0,8.784e-05]
[1762053306389,4.66456492,110230.0,110220.0,8.784e-05]
[1762053307633,4.66556492,110230.0,110220.0,8.784e-05]
[1762053307828,4.66456492,110230.0,110220.0,8.784e-05]
[1762053308125,4.66556492,110230.0,110220.0,8.784e-05]
[1762053308331,4.66456492,110230.0,110220.0,8.784e-05]
[1762053309291,4.66556492,110230.0,110220.0,8.784e-05]
[1762053309530,4.66456492,110230.0,110220.0,8.784e-05]
[1762053310873,4.6645629,110230.0,110220.0,8.784e-05]
[1762053313880,4.6655629,110230.0,110220.0,8.784e-05]
[1762053315269,4.6645629,110230.0,110220.0,8.784e-05]
[1762053315474,4.66456454,110230.0,110220.0,8.784e-05]
[1762053315682,4.66556454,110230.0,110220.0,8.784e-05]
[1762053317010,4.66456454,110230.0,110220.0,8.784e-05]
[1762053318381,4.66556454,110230.0,110220.0,8.784e-05]
[1762053320321,4.66456454,110230.0,110220.0,8.784e-05]
[1762053320914,4.66556454,110230.0,110220.0,8.784e-05]
[1762053321109,4.66456454,110230.0,110220.0,8.784e-05]
[1762053321937,4.66556454,110230.0,110220.0,8.784e-05]
[1762053325153,4.66456454,110230.0,110220.0,8.784e-05]
[1762053325358,4.66556176,110230.0,110220.0,8.784e-05]
[1762053326690,4.66456176,110230.0,110220.0,8.784e-05]
[1762053326894,4.66556176,110230.0,110220.0,8.784e-05]
[1762053327093,4.66456176,110230.0,110220.0,8.784e-05]
[1762053327294,4.66556176,110230.0,110220.0,8.784e-05]
[1762053327912,4.66456176,110230.0,110220.0,8.784e-05]
[1762053328259,1.66456176,110230.0,110220.0,8.784e-05]
[1762053329098,1.64751869,110230.0,110220.0,8.784e-05]
[1762053338025,1.64851869,110230.0,110220.0,8.784e-05]
[1762053338429,1.64751869,110230.0,110220.0,8.784e-05]